[Event "Early-Titled-Tuesday-Blitz-February-27-2024"]
[Site "Chess.com"]
[Date "2024.02.27"]
[Round "6"]
[White "Canal_Showdrez"]
[Black "mertfelin"]
[Result "0-1"]
[WhiteElo "1993"]
[BlackElo "2315"]
[TimeControl "180+1"]
[EndTime "9:05:55 PST"]
[Termination "mertfelin won by resignation"]

1. d4 {[%clk 0:03:00.9]} 1... d5 {[%clk 0:03:00.3]} 2. Nf3 {[%clk 0:03:00.5]}
2... Nf6 {[%clk 0:03:00.3]} 3. Bf4 {[%clk 0:03:00.4]} 3... e6 {[%clk 0:03:00.1]}
4. e3 {[%clk 0:02:58.2]} 4... c5 {[%clk 0:03:00.7]} 5. c3 {[%clk 0:02:57.9]}
5... Bd6 {[%clk 0:03:01.4]} 6. Ne5 {[%clk 0:02:57.4]} 6... Qc7 {[%clk
0:02:59.4]} 7. Bg3 {[%clk 0:02:56.5]} 7... Ne4 {[%clk 0:02:52.2]} 8. Bf4 {[%clk
0:02:51.3]} 8... Nd7 {[%clk 0:02:48.5]} 9. f3 {[%clk 0:02:46.8]} 9... Nef6
{[%clk 0:02:48]} 10. Nxd7 {[%clk 0:02:41.1]} 10... Bxd7 {[%clk 0:02:46.8]} 11.
Bg5 {[%clk 0:02:40]} 11... Be7 {[%clk 0:02:14.4]} 12. Nd2 {[%clk 0:02:35.5]}
12... O-O {[%clk 0:02:13.1]} 13. Bd3 {[%clk 0:02:28.3]} 13... Qb6 {[%clk
0:02:11.1]} 14. Rb1 {[%clk 0:02:20.6]} 14... Rac8 {[%clk 0:02:07.1]} 15. O-O
{[%clk 0:02:19.4]} 15... h6 {[%clk 0:02:05]} 16. Bh4 {[%clk 0:02:18.6]} 16...
Rfe8 {[%clk 0:02:03.7]} 17. f4 {[%clk 0:02:14.8]} 17... Bc6 {[%clk 0:01:45.5]}
18. Nf3 {[%clk 0:01:53.8]} 18... Ne4 {[%clk 0:01:45.3]} 19. Bxe7 {[%clk
0:01:50.8]} 19... Rxe7 {[%clk 0:01:45.9]} 20. Ne5 {[%clk 0:01:50.1]} 20... cxd4
{[%clk 0:01:40]} 21. exd4 {[%clk 0:01:46.8]} 21... f6 {[%clk 0:01:40.3]} 22. Ng6
{[%clk 0:01:44.3]} 22... Ree8 {[%clk 0:01:40.3]} 23. Qe2 {[%clk 0:01:21.8]}
23... Qc7 {[%clk 0:01:39.2]} 24. g4 {[%clk 0:01:10.2]} 24... Qf7 {[%clk
0:01:39]} 25. Nh4 {[%clk 0:01:04.9]} 25... Nd6 {[%clk 0:01:35.7]} 26. Rbe1
{[%clk 0:00:59.2]} 26... a6 {[%clk 0:01:35.5]} 27. Bg6 {[%clk 0:00:56.9]} 27...
Qc7 {[%clk 0:01:32.8]} 28. Bxe8 {[%clk 0:00:50.2]} 28... Rxe8 {[%clk 0:01:33.2]}
29. Rf3 {[%clk 0:00:46]} 29... Ne4 {[%clk 0:01:32.5]} 30. Ng2 {[%clk 0:00:39.8]}
30... Bb5 {[%clk 0:01:32.6]} 31. Qe3 {[%clk 0:00:37.7]} 31... Qc4 {[%clk
0:01:30.8]} 32. h4 {[%clk 0:00:36]} 32... Qxa2 {[%clk 0:01:29.8]} 33. g5 {[%clk
0:00:35.9]} 33... Qxb2 {[%clk 0:01:21.4]} 34. gxh6 {[%clk 0:00:34.1]} 34... Rc8
{[%clk 0:01:11.7]} 35. Rc1 {[%clk 0:00:29.3]} 35... Be2 {[%clk 0:01:02.4]} 36.
Rh3 {[%clk 0:00:21]} 36... Bd3 {[%clk 0:00:52.8]} 37. Qxd3 {[%clk 0:00:17.5]}
37... Qxc1+ {[%clk 0:00:53]} 38. Kh2 {[%clk 0:00:17.6]} 38... Rxc3 {[%clk
0:00:53.4]} 39. Qe2 {[%clk 0:00:15.8]} 39... Rxh3+ {[%clk 0:00:50.5]} 40. Kxh3
{[%clk 0:00:16.7]} 40... Qc3+ {[%clk 0:00:51.1]} 41. Kh2 {[%clk 0:00:16.1]}
41... Qg3+ {[%clk 0:00:51.2]} 42. Kg1 {[%clk 0:00:16.3]} 42... gxh6 {[%clk
0:00:49.3]} 43. Qc2 {[%clk 0:00:14.3]} 43... Nd6 {[%clk 0:00:27.4]} 44. Qc7
{[%clk 0:00:13.9]} 44... Nf5 {[%clk 0:00:25.4]} 45. Qc8+ {[%clk 0:00:13.5]}
45... Kf7 {[%clk 0:00:25.1]} 46. Qxb7+ {[%clk 0:00:13.4]} 46... Kg6 {[%clk
0:00:23.6]} 47. Qc8 {[%clk 0:00:12.4]} 47... Ng7 {[%clk 0:00:14.6]} 48. Qf8
{[%clk 0:00:11.5]} 48... a5 {[%clk 0:00:12.8]} 49. h5+ {[%clk 0:00:12]} 49...
Nxh5 {[%clk 0:00:12.1]} 50. Qe8+ {[%clk 0:00:11.5]} 50... Kf5 {[%clk 0:00:11.1]}
51. Qxh5+ {[%clk 0:00:10.9]} 51... Ke4 {[%clk 0:00:11.7]} 52. Qe2+ {[%clk
0:00:10.3]} 52... Kxd4 {[%clk 0:00:11.4]} 53. Qf2+ {[%clk 0:00:08.9]} 53...
Qxf2+ {[%clk 0:00:12]} 54. Kxf2 {[%clk 0:00:09.8]} 54... a4 {[%clk 0:00:12.2]}
55. Ne1 {[%clk 0:00:09.8]} 55... Kc3 {[%clk 0:00:12.1]} 56. Ke3 {[%clk
0:00:09.6]} 56... a3 {[%clk 0:00:12.8]} 57. Nd3 {[%clk 0:00:09.2]} 57... a2
{[%clk 0:00:13.1]} 58. Nc1 {[%clk 0:00:09]} 58... a1=Q {[%clk 0:00:13.3]} 59.
Nd3 {[%clk 0:00:09.6]} 59... Qa6 {[%clk 0:00:12.5]} 60. Nf2 {[%clk 0:00:07.2]}
60... Qb6+ {[%clk 0:00:13.2]} 61. Kf3 {[%clk 0:00:07]} 61... Qxf2+ {[%clk
0:00:14.1]} 62. Kxf2 {[%clk 0:00:07.6]} 62... d4 {[%clk 0:00:14.3]} 63. Ke2
{[%clk 0:00:07.5]} 63... f5 {[%clk 0:00:14.8]} 64. Kd1 {[%clk 0:00:07.3]} 64...
d3 {[%clk 0:00:14.9]} 0-1

[Event "Early-Titled-Tuesday-Blitz-February-27-2024"]
[Site "Chess.com"]
[Date "2024.02.27"]
[Round "6"]
[White "KuzubovYuriy"]
[Black "GMSrinath"]
[Result "1/2-1/2"]
[WhiteElo "2955"]
[BlackElo "2805"]
[TimeControl "180+1"]
[EndTime "9:05:56 PST"]
[Termination "Game drawn by repetition"]

1. d4 {[%clk 0:03:00.9]} 1... d5 {[%clk 0:02:57.5]} 2. c4 {[%clk 0:03:01.2]}
2... dxc4 {[%clk 0:02:57.5]} 3. e4 {[%clk 0:03:01.5]} 3... e5 {[%clk 0:02:55.7]}
4. Nf3 {[%clk 0:03:00.1]} 4... Bb4+ {[%clk 0:02:56.3]} 5. Nc3 {[%clk 0:02:59.8]}
5... Nf6 {[%clk 0:02:55.7]} 6. Nxe5 {[%clk 0:02:49.2]} 6... b5 {[%clk
0:02:36.4]} 7. f3 {[%clk 0:02:45.6]} 7... O-O {[%clk 0:02:29.9]} 8. a3 {[%clk
0:02:45.3]} 8... Ba5 {[%clk 0:02:28.5]} 9. Be3 {[%clk 0:02:44.3]} 9... Qe7
{[%clk 0:02:13.8]} 10. a4 {[%clk 0:02:34.2]} 10... a6 {[%clk 0:02:09.7]} 11.
axb5 {[%clk 0:02:26.6]} 11... axb5 {[%clk 0:02:10.6]} 12. Be2 {[%clk 0:02:26.6]}
12... c5 {[%clk 0:01:58.8]} 13. O-O {[%clk 0:02:17.4]} 13... cxd4 {[%clk
0:01:59.3]} 14. Qxd4 {[%clk 0:02:13.7]} 14... Qb7 {[%clk 0:01:20.3]} 15. Rfd1
{[%clk 0:01:37.2]} 15... Be6 {[%clk 0:00:59]} 16. Qc5 {[%clk 0:01:23]} 16...
Nbd7 {[%clk 0:00:56.6]} 17. Nxd7 {[%clk 0:01:17.9]} 17... Nxd7 {[%clk
0:00:54.3]} 18. Qxb5 {[%clk 0:01:14.8]} 18... Qxb5 {[%clk 0:00:53.4]} 19. Nxb5
{[%clk 0:01:15]} 19... Rfb8 {[%clk 0:00:54.2]} 20. Nd6 {[%clk 0:01:06.6]} 20...
c3 {[%clk 0:00:52.4]} 21. bxc3 {[%clk 0:01:03.5]} 21... Bxc3 {[%clk 0:00:53.3]}
22. Rxa8 {[%clk 0:01:02.6]} 22... Rxa8 {[%clk 0:00:54.2]} 23. Bc4 {[%clk
0:00:57.2]} 23... Bxc4 {[%clk 0:00:45.3]} 24. Nxc4 {[%clk 0:00:58.1]} 24... Ne5
{[%clk 0:00:40.4]} 25. Nb6 {[%clk 0:00:57.7]} 25... Ra1 {[%clk 0:00:39.3]} 26.
Rxa1 {[%clk 0:00:56.4]} 26... Bxa1 {[%clk 0:00:40.2]} 27. Kf1 {[%clk 0:00:56.3]}
27... Nc6 {[%clk 0:00:34.7]} 28. Nd5 {[%clk 0:00:54.3]} 28... f6 {[%clk
0:00:33.4]} 29. Ke2 {[%clk 0:00:53.9]} 29... Kf7 {[%clk 0:00:32.8]} 30. g4
{[%clk 0:00:50.7]} 30... g5 {[%clk 0:00:29.7]} 31. Bf2 {[%clk 0:00:47.5]} 31...
Kg6 {[%clk 0:00:24.5]} 32. Bc5 {[%clk 0:00:40.5]} 32... h5 {[%clk 0:00:20.7]}
33. h3 {[%clk 0:00:35.5]} 33... hxg4 {[%clk 0:00:20.5]} 34. hxg4 {[%clk
0:00:34.9]} 34... Kf7 {[%clk 0:00:21.2]} 35. Ne3 {[%clk 0:00:30.5]} 35... Bd4
{[%clk 0:00:15.6]} 36. Bxd4 {[%clk 0:00:29.8]} 36... Nxd4+ {[%clk 0:00:16.5]}
37. Kf2 {[%clk 0:00:30.5]} 37... Ke6 {[%clk 0:00:17.2]} 38. Nf5 {[%clk
0:00:30.6]} 38... Nc2 {[%clk 0:00:13.3]} 39. Ke2 {[%clk 0:00:27.8]} 39... Ke5
{[%clk 0:00:13.2]} 40. Ne3 {[%clk 0:00:27.1]} 40... Nd4+ {[%clk 0:00:12.4]} 41.
Kf2 {[%clk 0:00:27.6]} 41... Ne6 {[%clk 0:00:12.3]} 42. Nd5 {[%clk 0:00:26.8]}
42... Nd4 {[%clk 0:00:12.1]} 43. Ke3 {[%clk 0:00:26.6]} 43... Nc2+ {[%clk
0:00:12.3]} 44. Kd3 {[%clk 0:00:27.1]} 44... Ne1+ {[%clk 0:00:12.3]} 45. Ke2
{[%clk 0:00:27.4]} 45... Nc2 {[%clk 0:00:13]} 46. Ne7 {[%clk 0:00:24.1]} 46...
Nd4+ {[%clk 0:00:12.3]} 47. Kf2 {[%clk 0:00:24.4]} 47... Ke6 {[%clk 0:00:10]}
48. Nf5 {[%clk 0:00:24.6]} 48... Nc2 {[%clk 0:00:10.6]} 49. Ne3 {[%clk
0:00:24.8]} 49... Nd4 {[%clk 0:00:10]} 50. Nc4 {[%clk 0:00:25.5]} 50... Nc2
{[%clk 0:00:09.3]} 51. Ke2 {[%clk 0:00:24.6]} 51... Nd4+ {[%clk 0:00:09.7]} 52.
Ke3 {[%clk 0:00:25]} 52... Nc2+ {[%clk 0:00:10.4]} 53. Kf2 {[%clk 0:00:23.6]}
53... Nd4 {[%clk 0:00:10.4]} 54. Nd2 {[%clk 0:00:22.7]} 54... Nc2 {[%clk
0:00:10.6]} 55. Ke2 {[%clk 0:00:22.3]} 55... Nd4+ {[%clk 0:00:11]} 56. Kd3
{[%clk 0:00:22.7]} 56... Nc6 {[%clk 0:00:11.2]} 57. Nc4 {[%clk 0:00:22.5]} 57...
Nb4+ {[%clk 0:00:10.5]} 58. Kd4 {[%clk 0:00:22.3]} 58... Nc2+ {[%clk 0:00:10.9]}
59. Kd3 {[%clk 0:00:19.9]} 59... Ne1+ {[%clk 0:00:11.5]} 60. Ke2 {[%clk
0:00:18.9]} 60... Nc2 {[%clk 0:00:12.1]} 61. Nd2 {[%clk 0:00:19.3]} 61... Nd4+
{[%clk 0:00:11.3]} 62. Kd3 {[%clk 0:00:18.6]} 62... Nc6 {[%clk 0:00:11.9]} 63.
Nb3 {[%clk 0:00:17.5]} 63... Ne5+ {[%clk 0:00:11.1]} 64. Ke3 {[%clk 0:00:17.1]}
64... Nc4+ {[%clk 0:00:11.7]} 65. Kd4 {[%clk 0:00:17.6]} 65... Ne5 {[%clk
0:00:11]} 66. Nd2 {[%clk 0:00:17.3]} 66... Nc6+ {[%clk 0:00:11.3]} 67. Kc5
{[%clk 0:00:16.5]} 67... Ne5 {[%clk 0:00:11.1]} 68. Kd4 {[%clk 0:00:16.4]} 68...
Nc6+ {[%clk 0:00:11.2]} 69. Ke3 {[%clk 0:00:16.7]} 69... Ne5 {[%clk 0:00:11.8]}
70. Nf1 {[%clk 0:00:16.6]} 70... Nc4+ {[%clk 0:00:12.1]} 71. Kd4 {[%clk
0:00:16.8]} 71... Ne5 {[%clk 0:00:12.2]} 72. Nd2 {[%clk 0:00:16.7]} 1/2-1/2

[Event "Early-Titled-Tuesday-Blitz-February-27-2024"]
[Site "Chess.com"]
[Date "2024.02.27"]
[Round "6"]
[White "ValeriyGrinev"]
[Black "artin10862"]
[Result "0-1"]
[WhiteElo "2576"]
[BlackElo "2882"]
[TimeControl "180+1"]
[EndTime "9:06:00 PST"]
[Termination "artin10862 won on time"]

1. d4 {[%clk 0:03:00.9]} 1... d5 {[%clk 0:02:57.4]} 2. c4 {[%clk 0:03:00.9]}
2... dxc4 {[%clk 0:02:58.3]} 3. e3 {[%clk 0:03:00.1]} 3... c5 {[%clk 0:02:46.7]}
4. Bxc4 {[%clk 0:03:00.1]} 4... cxd4 {[%clk 0:02:46.8]} 5. exd4 {[%clk
0:02:58.1]} 5... Nf6 {[%clk 0:02:43.7]} 6. Nc3 {[%clk 0:02:57.7]} 6... e6 {[%clk
0:02:36.8]} 7. Nf3 {[%clk 0:02:57.2]} 7... Bb4 {[%clk 0:02:27.9]} 8. O-O {[%clk
0:02:56.1]} 8... O-O {[%clk 0:02:27.3]} 9. Bg5 {[%clk 0:02:54.5]} 9... Nc6
{[%clk 0:02:26]} 10. Rc1 {[%clk 0:02:35.3]} 10... Be7 {[%clk 0:02:24.7]} 11. a3
{[%clk 0:02:34]} 11... h6 {[%clk 0:02:19.5]} 12. Be3 {[%clk 0:02:23.2]} 12...
Bd6 {[%clk 0:01:45]} 13. Qd3 {[%clk 0:02:16.6]} 13... Ne7 {[%clk 0:01:40.8]} 14.
Ba2 {[%clk 0:02:11]} 14... b6 {[%clk 0:01:34.5]} 15. Ne4 {[%clk 0:01:59.2]}
15... Nf5 {[%clk 0:00:59.9]} 16. Bb1 {[%clk 0:01:48.2]} 16... Bb7 {[%clk
0:00:54]} 17. Nxf6+ {[%clk 0:01:47.7]} 17... Qxf6 {[%clk 0:00:53.9]} 18. Ne5
{[%clk 0:01:44]} 18... Rfd8 {[%clk 0:00:39]} 19. Nc6 {[%clk 0:01:37.9]} 19...
Rd7 {[%clk 0:00:32.4]} 20. b4 {[%clk 0:01:25.3]} 20... g6 {[%clk 0:00:23.9]} 21.
b5 {[%clk 0:01:23.7]} 21... a6 {[%clk 0:00:21]} 22. a4 {[%clk 0:01:22.9]} 22...
axb5 {[%clk 0:00:21.2]} 23. axb5 {[%clk 0:01:23.8]} 23... Ra3 {[%clk 0:00:21.7]}
24. Rc3 {[%clk 0:01:20.3]} 24... Rxc3 {[%clk 0:00:21.6]} 25. Qxc3 {[%clk
0:01:21.2]} 25... Rc7 {[%clk 0:00:22.5]} 26. g3 {[%clk 0:01:09.2]} 26... Ne7
{[%clk 0:00:14.5]} 27. Be4 {[%clk 0:01:02.9]} 27... Kg7 {[%clk 0:00:10.4]} 28.
Rc1 {[%clk 0:01:00.9]} 28... Nf5 {[%clk 0:00:10.4]} 29. Bg2 {[%clk 0:00:52.1]}
29... Rc8 {[%clk 0:00:09.6]} 30. Qd2 {[%clk 0:00:44.9]} 30... Ra8 {[%clk
0:00:09.2]} 31. d5 {[%clk 0:00:34.7]} 31... Nxe3 {[%clk 0:00:08.8]} 32. Qxe3
{[%clk 0:00:34.5]} 32... Bc5 {[%clk 0:00:08.2]} 33. Rxc5 {[%clk 0:00:18.9]}
33... bxc5 {[%clk 0:00:09.1]} 34. Qxc5 {[%clk 0:00:18.6]} 34... Ra1+ {[%clk
0:00:07.2]} 35. Bf1 {[%clk 0:00:18.3]} 35... exd5 {[%clk 0:00:07.2]} 36. Qxd5
{[%clk 0:00:17.7]} 36... Qc3 {[%clk 0:00:07]} 37. Kg2 {[%clk 0:00:14.5]} 37...
Bc8 {[%clk 0:00:04.7]} 38. Ne5 {[%clk 0:00:13.5]} 38... Be6 {[%clk 0:00:03.1]}
39. Qe4 {[%clk 0:00:11.7]} 39... Qc1 {[%clk 0:00:02.9]} 40. Qe2 {[%clk
0:00:08.2]} 40... Qxf1+ {[%clk 0:00:03.2]} 41. Qxf1 {[%clk 0:00:07.9]} 41...
Bh3+ {[%clk 0:00:04.1]} 42. Kxh3 {[%clk 0:00:07.9]} 42... Rxf1 {[%clk 0:00:05]}
43. b6 {[%clk 0:00:08.3]} 43... Rb1 {[%clk 0:00:05.9]} 44. Nc4 {[%clk
0:00:08.5]} 44... Rb4 {[%clk 0:00:05.9]} 45. Ne3 {[%clk 0:00:09.4]} 45... Rxb6
{[%clk 0:00:06]} 46. Kg2 {[%clk 0:00:10.3]} 46... Rb2 {[%clk 0:00:06.6]} 47. h4
{[%clk 0:00:11.1]} 47... Rb8 {[%clk 0:00:06.9]} 48. Nc4 {[%clk 0:00:11.4]} 48...
Rc8 {[%clk 0:00:07.1]} 49. Ne3 {[%clk 0:00:11.4]} 49... Rd8 {[%clk 0:00:08]} 50.
Nf1 {[%clk 0:00:11.7]} 50... f5 {[%clk 0:00:08.5]} 51. Nh2 {[%clk 0:00:12.1]}
51... Kf6 {[%clk 0:00:09]} 52. Nf3 {[%clk 0:00:12.5]} 52... g5 {[%clk
0:00:09.5]} 53. hxg5+ {[%clk 0:00:12.5]} 53... hxg5 {[%clk 0:00:10.4]} 54. Ne1
{[%clk 0:00:13]} 54... f4 {[%clk 0:00:08.3]} 55. gxf4 {[%clk 0:00:12.7]} 55...
gxf4 {[%clk 0:00:08.8]} 56. Kf3 {[%clk 0:00:13.6]} 56... Kf5 {[%clk 0:00:09.4]}
57. Ng2 {[%clk 0:00:14.2]} 57... Rd3+ {[%clk 0:00:08.5]} 58. Ke2 {[%clk
0:00:14.4]} 58... f3+ {[%clk 0:00:09.4]} 59. Kxd3 {[%clk 0:00:14.6]} 59... fxg2
{[%clk 0:00:10.3]} 0-1

[Event "Early-Titled-Tuesday-Blitz-February-27-2024"]
[Site "Chess.com"]
[Date "2024.02.27"]
[Round "6"]
[White "AcostaPablo"]
[Black "emeli_chess"]
[Result "0-1"]
[WhiteElo "2613"]
[BlackElo "2446"]
[TimeControl "180+1"]
[EndTime "9:06:03 PST"]
[Termination "emeli_chess won by checkmate"]

1. c4 {[%clk 0:02:49.5]} 1... e6 {[%clk 0:02:58.7]} 2. g3 {[%clk 0:02:44]} 2...
d5 {[%clk 0:02:58.7]} 3. Nf3 {[%clk 0:02:43.4]} 3... c5 {[%clk 0:02:57.2]} 4.
cxd5 {[%clk 0:02:42.6]} 4... Qxd5 {[%clk 0:02:50.3]} 5. Bg2 {[%clk 0:02:41.8]}
5... Qd8 {[%clk 0:02:46.7]} 6. Nc3 {[%clk 0:02:41.6]} 6... Nc6 {[%clk
0:02:46.3]} 7. O-O {[%clk 0:02:41.5]} 7... Nf6 {[%clk 0:02:46.2]} 8. d3 {[%clk
0:02:40.4]} 8... Be7 {[%clk 0:02:45.8]} 9. Bg5 {[%clk 0:02:35.3]} 9... O-O
{[%clk 0:02:45.7]} 10. Bxf6 {[%clk 0:02:33.8]} 10... Bxf6 {[%clk 0:02:44.4]} 11.
Rc1 {[%clk 0:02:34.4]} 11... b6 {[%clk 0:02:42.2]} 12. Qa4 {[%clk 0:02:27.5]}
12... Bb7 {[%clk 0:02:31.4]} 13. Ne4 {[%clk 0:02:25.6]} 13... Be7 {[%clk
0:02:29.9]} 14. Rfd1 {[%clk 0:02:15.3]} 14... Qd7 {[%clk 0:02:15.3]} 15. d4
{[%clk 0:01:55.1]} 15... Ne5 {[%clk 0:01:54.9]} 16. Qxd7 {[%clk 0:01:45.8]}
16... Nxd7 {[%clk 0:01:54.6]} 17. Nc3 {[%clk 0:01:22.3]} 17... Rfd8 {[%clk
0:01:48.6]} 18. e3 {[%clk 0:00:45.9]} 18... Rac8 {[%clk 0:01:42.7]} 19. d5
{[%clk 0:00:46]} 19... Nf6 {[%clk 0:01:33.6]} 20. dxe6 {[%clk 0:00:45.5]} 20...
fxe6 {[%clk 0:01:28.5]} 21. Ng5 {[%clk 0:00:45.5]} 21... Bxg2 {[%clk 0:01:23]}
22. Kxg2 {[%clk 0:00:45.4]} 22... e5 {[%clk 0:01:13.1]} 23. Ne6 {[%clk
0:00:40.2]} 23... Rxd1 {[%clk 0:01:12]} 24. Rxd1 {[%clk 0:00:40.7]} 24... h6
{[%clk 0:01:06.9]} 25. Nb5 {[%clk 0:00:37.4]} 25... Kf7 {[%clk 0:00:58.5]} 26.
Nec7 {[%clk 0:00:33.7]} 26... Rd8 {[%clk 0:00:35.7]} 27. Rxd8 {[%clk 0:00:31.9]}
27... Bxd8 {[%clk 0:00:35.9]} 28. Na6 {[%clk 0:00:28.3]} 28... Nd5 {[%clk
0:00:30.5]} 29. e4 {[%clk 0:00:20.5]} 29... Ne7 {[%clk 0:00:27.9]} 30. Nxa7
{[%clk 0:00:20.1]} 30... Ke6 {[%clk 0:00:27.8]} 31. Nb5 {[%clk 0:00:18.9]} 31...
Nc6 {[%clk 0:00:27.7]} 32. Nac7+ {[%clk 0:00:19.4]} 32... Kd7 {[%clk 0:00:26.3]}
33. Nd5 {[%clk 0:00:19.8]} 33... Nd4 {[%clk 0:00:26.4]} 34. Nxd4 {[%clk
0:00:19.3]} 34... exd4 {[%clk 0:00:26.6]} 35. Kf3 {[%clk 0:00:19.9]} 35... Kc6
{[%clk 0:00:26.7]} 36. a4 {[%clk 0:00:19.6]} 36... c4 {[%clk 0:00:25.4]} 37. Ke2
{[%clk 0:00:20.1]} 37... Kc5 {[%clk 0:00:25.2]} 38. f4 {[%clk 0:00:20.7]} 38...
b5 {[%clk 0:00:23.4]} 39. axb5 {[%clk 0:00:20.9]} 39... Kxb5 {[%clk 0:00:23.9]}
40. Kd2 {[%clk 0:00:21.6]} 40... Kc5 {[%clk 0:00:22.9]} 41. Kc2 {[%clk
0:00:21.9]} 41... Ba5 {[%clk 0:00:20.9]} 42. g4 {[%clk 0:00:20.4]} 42... d3+
{[%clk 0:00:20.3]} 43. Kd1 {[%clk 0:00:20.4]} 43... Kd4 {[%clk 0:00:20.6]} 44.
Ne7 {[%clk 0:00:15.3]} 44... Kxe4 {[%clk 0:00:19.6]} 45. Nc6 {[%clk 0:00:15.9]}
45... Bb6 {[%clk 0:00:17.2]} 46. f5 {[%clk 0:00:15.6]} 46... Bd4 {[%clk
0:00:15.3]} 47. Nxd4 {[%clk 0:00:12.7]} 47... Kxd4 {[%clk 0:00:15.7]} 48. Kd2
{[%clk 0:00:13.1]} 48... Ke4 {[%clk 0:00:11.5]} 49. h3 {[%clk 0:00:13]} 49...
Kd4 {[%clk 0:00:11.4]} 50. h4 {[%clk 0:00:10.7]} 50... Ke4 {[%clk 0:00:11.4]}
51. g5 {[%clk 0:00:03.9]} 51... hxg5 {[%clk 0:00:11.5]} 52. hxg5 {[%clk
0:00:04.6]} 52... Kxf5 {[%clk 0:00:11.8]} 53. b3 {[%clk 0:00:05.2]} 53... cxb3
{[%clk 0:00:11.4]} 54. Kxd3 {[%clk 0:00:06.1]} 54... Kxg5 {[%clk 0:00:11.8]} 55.
Kc3 {[%clk 0:00:06.8]} 55... Kf4 {[%clk 0:00:12.1]} 56. Kxb3 {[%clk 0:00:07.7]}
56... Ke3 {[%clk 0:00:12.5]} 57. Kc4 {[%clk 0:00:08.4]} 57... g5 {[%clk
0:00:12.8]} 58. Kd5 {[%clk 0:00:09.3]} 58... g4 {[%clk 0:00:13.1]} 59. Ke6
{[%clk 0:00:10.2]} 59... g3 {[%clk 0:00:13.6]} 60. Kf5 {[%clk 0:00:11.1]} 60...
g2 {[%clk 0:00:13.7]} 61. Kf6 {[%clk 0:00:12]} 61... g1=Q {[%clk 0:00:14]} 62.
Kf7 {[%clk 0:00:12.9]} 62... Qg5 {[%clk 0:00:13.7]} 63. Ke6 {[%clk 0:00:13.7]}
63... Ke4 {[%clk 0:00:13.6]} 64. Kd7 {[%clk 0:00:13.1]} 64... Qf6 {[%clk
0:00:13.3]} 65. Kc7 {[%clk 0:00:14]} 65... Kd5 {[%clk 0:00:11.9]} 66. Kb7 {[%clk
0:00:14.9]} 66... Qc6+ {[%clk 0:00:11.3]} 67. Ka7 {[%clk 0:00:14]} 67... Qb5
{[%clk 0:00:11.5]} 68. Ka8 {[%clk 0:00:06.5]} 68... Kc6 {[%clk 0:00:11.3]} 69.
Ka7 {[%clk 0:00:07.1]} 69... Qb7# {[%clk 0:00:11.5]} 0-1

[Event "Early-Titled-Tuesday-Blitz-February-27-2024"]
[Site "Chess.com"]
[Date "2024.02.27"]
[Round "6"]
[White "As0nchess"]
[Black "Sam_ChessMood"]
[Result "0-1"]
[WhiteElo "2536"]
[BlackElo "2937"]
[TimeControl "180+1"]
[EndTime "9:06:07 PST"]
[Termination "Sam_ChessMood won on time"]

1. e4 {[%clk 0:02:57.4]} 1... c5 {[%clk 0:03:00]} 2. Nf3 {[%clk 0:02:57.4]} 2...
e6 {[%clk 0:03:00.5]} 3. d4 {[%clk 0:02:57.9]} 3... cxd4 {[%clk 0:03:01.4]} 4.
Nxd4 {[%clk 0:02:58.7]} 4... Nf6 {[%clk 0:03:02]} 5. Nc3 {[%clk 0:02:58.7]} 5...
Nc6 {[%clk 0:03:02.4]} 6. Ndb5 {[%clk 0:02:58.9]} 6... d6 {[%clk 0:03:01.3]} 7.
Bf4 {[%clk 0:02:58.6]} 7... e5 {[%clk 0:03:01.6]} 8. Bg5 {[%clk 0:02:59.3]} 8...
a6 {[%clk 0:03:01.9]} 9. Na3 {[%clk 0:02:59.5]} 9... b5 {[%clk 0:03:02.1]} 10.
Nd5 {[%clk 0:03:00.2]} 10... Be7 {[%clk 0:03:02.6]} 11. Bxf6 {[%clk 0:03:00.8]}
11... Bxf6 {[%clk 0:03:02.9]} 12. c3 {[%clk 0:03:01.5]} 12... Rb8 {[%clk
0:03:01.3]} 13. Nc2 {[%clk 0:03:01.4]} 13... Bg5 {[%clk 0:03:01.4]} 14. Be2
{[%clk 0:02:57.9]} 14... O-O {[%clk 0:03:00.7]} 15. O-O {[%clk 0:02:58.5]} 15...
Be6 {[%clk 0:02:56.2]} 16. Qd3 {[%clk 0:02:58.4]} 16... a5 {[%clk 0:02:41.1]}
17. Rfd1 {[%clk 0:02:55]} 17... g6 {[%clk 0:02:26.5]} 18. Na3 {[%clk 0:02:54.2]}
18... Na7 {[%clk 0:02:12.7]} 19. Ne3 {[%clk 0:02:39]} 19... Rb6 {[%clk
0:02:05.7]} 20. b4 {[%clk 0:02:26.8]} 20... axb4 {[%clk 0:01:48.9]} 21. cxb4
{[%clk 0:02:27.1]} 21... Nc6 {[%clk 0:01:46.7]} 22. Nac2 {[%clk 0:02:22.6]}
22... Ne7 {[%clk 0:01:33.9]} 23. Qc3 {[%clk 0:02:05.4]} 23... Qb8 {[%clk
0:01:29.4]} 24. Bg4 {[%clk 0:01:57.9]} 24... Rc8 {[%clk 0:01:27.7]} 25. Qb2
{[%clk 0:01:50.9]} 25... Rbc6 {[%clk 0:01:21.6]} 26. Bxe6 {[%clk 0:01:50.1]}
26... fxe6 {[%clk 0:01:21.8]} 27. Qb3 {[%clk 0:01:48.8]} 27... Kf7 {[%clk
0:01:21.4]} 28. Rd3 {[%clk 0:01:48.3]} 28... h5 {[%clk 0:01:12.6]} 29. g3 {[%clk
0:01:45.7]} 29... Ng8 {[%clk 0:01:12]} 30. Rad1 {[%clk 0:01:43.9]} 30... Be7
{[%clk 0:01:10.8]} 31. Ne1 {[%clk 0:01:21.5]} 31... Nf6 {[%clk 0:01:00.4]} 32.
f3 {[%clk 0:01:21.4]} 32... Qc7 {[%clk 0:00:53.6]} 33. Kg2 {[%clk 0:01:14.9]}
33... Qb6 {[%clk 0:00:50.1]} 34. N1c2 {[%clk 0:01:06.9]} 34... Qc7 {[%clk
0:00:46.9]} 35. R1d2 {[%clk 0:01:06.9]} 35... Rc3 {[%clk 0:00:44.1]} 36. Rxc3
{[%clk 0:01:07.1]} 36... Qxc3 {[%clk 0:00:44.3]} 37. Rd3 {[%clk 0:01:04.7]}
37... Qc6 {[%clk 0:00:42.1]} 38. Na3 {[%clk 0:00:59.7]} 38... Bd8 {[%clk
0:00:33]} 39. Qd1 {[%clk 0:00:58.3]} 39... Ke7 {[%clk 0:00:32.4]} 40. Qe2 {[%clk
0:00:51.6]} 40... Bb6 {[%clk 0:00:32.3]} 41. Nd1 {[%clk 0:00:44.1]} 41... Ba7
{[%clk 0:00:29.7]} 42. Rc3 {[%clk 0:00:42.4]} 42... Qb7 {[%clk 0:00:25.3]} 43.
Nxb5 {[%clk 0:00:41.2]} 43... Bb6 {[%clk 0:00:20.8]} 44. Rxc8 {[%clk 0:00:39.9]}
44... Qxc8 {[%clk 0:00:21.7]} 45. Qd2 {[%clk 0:00:36.6]} 45... Qc6 {[%clk
0:00:16.3]} 46. a4 {[%clk 0:00:35.5]} 46... d5 {[%clk 0:00:15.2]} 47. exd5
{[%clk 0:00:34.1]} 47... exd5 {[%clk 0:00:15.7]} 48. Qg5 {[%clk 0:00:28.1]}
48... Qc2+ {[%clk 0:00:15.2]} 49. Kh3 {[%clk 0:00:27.3]} 49... Ke6 {[%clk
0:00:06.2]} 50. Ndc3 {[%clk 0:00:20.4]} 50... Qd3 {[%clk 0:00:04.9]} 51. a5
{[%clk 0:00:16.3]} 51... Qf1+ {[%clk 0:00:05.1]} 52. Kh4 {[%clk 0:00:16.7]}
52... Qg2 {[%clk 0:00:05.6]} 53. h3 {[%clk 0:00:13.9]} 53... Bf2 {[%clk
0:00:03.3]} 54. Nc7+ {[%clk 0:00:13.7]} 54... Kf7 {[%clk 0:00:03.1]} 55. N3xd5
{[%clk 0:00:11.4]} 55... Nh7 {[%clk 0:00:02.2]} 56. Qe7+ {[%clk 0:00:10.5]}
56... Kg8 {[%clk 0:00:02.6]} 57. Qe8+ {[%clk 0:00:07.4]} 57... Kg7 {[%clk
0:00:03.1]} 58. Ne6+ {[%clk 0:00:06.6]} 58... Kh6 {[%clk 0:00:03.5]} 0-1